Cogmind - Beta 13 @@@ ROGUE MODE // 2024.04.13 @ 10:55:24 Player: graour Result: Self-destructed Performance ------------- Evolutions (1) 500 Regions Visited (2) 400 Robots Destroyed (20) 100 Value Destroyed (392) 392 Prototype IDs (1) 20 Alien Tech Used (0) 0 Bonus (0) 0 TOTAL SCORE: 1412 Bonus ------- None Cogmind --------- Core Integrity 300/400 Matter 292/300 Energy 100/100 System Corruption 0% Temperature Cool (0) Movement Treading (160) Location -9/Materials Parts ------- > --- POWER (1) -------- (None) > --- PROPULSION (2) --- Light Treads > --- UTILITY (4) ------ Cooling System Medium Storage Unit > --- WEAPON (2) ------- Improved EM Shotgun Light Assault Rifle > --- INVENTORY (10) --- Ion Engine Small Storage Unit Large Matter Pod (150) Targeting Computer Improved EM Shotgun Mini Grenade Launcher Peak State ------------ > --- POWER ------------ (None) > --- PROPULSION ------- Light Treads Light Treads > --- UTILITY ---------- Cooling System Cooling System Medium Storage Unit Tractor Beam > --- WEAPON ----------- Improved EM Shotgun Light Assault Rifle > --- INVENTORY -------- Ion Engine Light Treads Small Storage Unit Large Matter Pod Targeting Computer Mini Grenade Launcher [Rating: 12] Favorites ----------- Power Light Ion Engine Engine Light Ion Engine Power Core Light Nuclear Core Propulsion Light Treads Treads Light Treads Wheel Compact Wheel Utility Tractor Beam Device Tractor Beam Storage Medium Storage Unit Weapon Medium Laser Energy Gun Medium Laser Ballistic Gun Light Assault Rifle Special Weapon Mining Laser Build | -11 -10 -9 ------- Run | Yrd Mat Mat Slots Evolved 2 | . . 2 Power . | . . . Propulsion . | . . . Utility 2 | . . 2 Weapon . | . . . Parts Attached 21 | 6 7 8 Power 3 | 1 1 1 Engine 2 | 1 . 1 Core 1 | . 1 . Reactor . | . . . Propulsion 5 | 2 2 1 Treads 3 | . 2 1 Leg . | . . . Wheel 2 | 2 . . Hover . | . . . Flight . | . . . Utility 5 | 1 2 2 Device 3 | . 1 2 Storage 2 | 1 1 . Processor . | . . . Hackware . | . . . Protection . | . . . Artifact . | . . . Weapon 8 | 2 2 4 Energy Gun 4 | 2 . 2 Energy Cannon . | . . . Ballistic Gun 3 | . 2 1 Ballistic Cannon . | . . . Launcher . | . . . Special Weapon 1 | . . 1 Impact Weapon . | . . . Slashing Weapon . | . . . Piercing Weapon . | . . . Special Melee Weapon . | . . . Unidentified Prototypes 1 | . . 1 Parts Lost 10 | . 3 7 Power 3 | . 1 2 Propulsion 3 | . 1 2 Utility 2 | . . 2 Weapon 2 | . 1 1 Highest Loss Streak 4 | . 2 4 To Critical Strikes . | . . . Average Slot Usage (%) 84 | . 95 71 Engine 6 | . 8 3 Core 3 | . 4 2 Treads 13 | . 9 18 Wheel 10 | . 18 . Device 16 | . 13 20 Storage 12 | . 14 11 Energy Gun 10 | . 15 4 Ballistic Gun 9 | . 9 9 Naked Turns . | . . . Heaviest Build 21 | 12 19 21 Greatest Support 40 | 26 40 40 Greatest Overweight (x) 6 | . . 6 Average Overweight (x) . | . . . Largest Inventory Capacity 10 | 8 10 10 Average Capacity 9 | 6 9 10 Most Carried 10 | 5 10 8 Average Carried 7 | 2 7 7 Final Capacity 10 | 8 10 10 Final Carried 9 | 4 9 6 Class Distribution -------------------- 100% | Mutant Dominant Class ---------------- Mutant | -10/Materials Mutant | -9/Materials Resources | -11 -10 -9 ----------- Run | Yrd Mat Mat Matter Collected 608 | 217 276 115 Remotely 378 | . 276 102 Salvage Created 728 | . 482 246 Parts 36 | . 26 10 Haulers Intercepted 3 | . 2 1 Recyclers Shooed 3 | . 3 . Parts Field Recycled . | . . . Retrieved Matter . | . . . Parts Self-Destructed . | . . . Prevented . | . . . Kills | -11 -10 -9 ------- Run | Yrd Mat Mat Combat Hostiles Destroyed 14 | . 10 4 Guns 14 | . 10 4 Classes Destroyed 5 | . 5 . Builder 1 | . 1 . Hauler 3 | . 2 1 Recycler 2 | . 1 1 Swarmer 5 | . 5 . Grunt 9 | . 5 4 Best Kill Streak 5 | . 5 2 Combat Bots Only 5 | . 5 2 Max Kills in Single Turn 2 | . 2 1 Gunslinging . | . . . Exploded . | . . . Melee . | . . . Uniques/NPCs Destroyed . | . . . Combat | -11 -10 -9 -------- Run | Yrd Mat Mat Hostile Shots Fired 143 | . 77 66 Missed 34 | . 18 16 Damage Taken 1196 | . 612 584 Core 216 | . 116 100 Absorbed by Shields . | . . . Core Remaining (%) 76 | 100 53 . Volleys Fired 123 | . 56 67 Largest 2 | . 2 2 Hottest 120 | . 100 120 Shots Fired 159 | . 89 70 Gun 156 | . 89 67 Cannon . | . . . Launcher . | . . . Special 3 | . . 3 Kinetic 111 | . 51 60 Thermal 41 | . 38 3 Explosive . | . . . Electromagnetic 7 | . . 7 Robot Hit Streak 13 | . 10 13 Robot Miss Streak 4 | . 4 4 Penetration Max . | . . . Secondary Targets 3 | . 3 . Max Gunslinging Chain 1 | . 1 . Shots Hit Robots 111 | . 64 47 Core Hits 35 | . 22 13 Critical Kills . | . . . Critical Parts Destroyed . | . . . Critical Strikes 3 | . 3 . Burn 3 | . 3 . Melee Attacks . | . . . Impact . | . . . Slashing . | . . . Piercing . | . . . Sneak Attacks . | . . . Combat Hostiles . | . . . Follow-up Attacks . | . . . Damage Inflicted 1194 | . 708 486 Guns 1133 | . 707 426 Cannons . | . . . Explosions 54 | . . 54 Melee . | . . . Ramming 7 | . 1 6 Kinetic 674 | . 328 346 Thermal 433 | . 379 54 Explosive . | . . . Electromagnetic 80 | . . 80 Impact . | . . . Slashing . | . . . Piercing . | . . . Highest Corruption . | . . . Average Corruption . | . . . Corruption Purged . | . . . Corruption Blocked . | . . . Overload Shots . | . . . Overflow Damage . | . . . Projectiles . | . . . Explosions . | . . . Melee . | . . . Knockbacks . | . . . Impact . | . . . Kinetic . | . . . Secondary . | . . . Self-Inflicted Damage 22 | . . 22 Shots 1 | . . 1 Rammed 3 | . 1 2 Targets Rammed 4 | . 1 3 Kicked . | . . . Crushed 1 | . . 1 Highest Temperature 249 | . 249 . Average Temperature 75 | . 75 . Received Heat Transfer 522 | . 228 294 Siege Activations . | . . . Robots Corrupted . | . . . Combat Hostiles . | . . . Parts Fried . | . . . Impact Corruptions . | . . . Robots Melted 1 | . 1 . Combat Hostiles . | . . . Parts Melted 6 | . 6 . Heat Transferred 1432 | . 1332 100 Parts Sabotaged . | . . . Parts Stolen . | . . . Parts Stripped . | . . . Power Chain Reactions 1 | . . 1 Alert | -11 -10 -9 ------- Run | Yrd Mat Mat Peak Influence 220 | . 220 94 Initial 25 | . . 25 Average 54 | . 57 60 Maximum Alert Level 1 | . 1 . Low Security (%) 99 | 100 98 100 Level 1 . | . 1 . Level 2 . | . . . Level 3 . | . . . Level 4 . | . . . Level 5 . | . . . High Security . | . . . Max Security . | . . . Squads Dispatched 2 | . 1 1 Investigation 1 | . 1 . Extermination . | . . . Reinforcement 1 | . . 1 Assault . | . . . Garrison . | . . . Intercept . | . . . Searches Triggered . | . . . Construction Impeded . | . . . Haulers Reinforced . | . . . Active Scanning Responses . | . . . Cargo Convoy Interrupts . | . . . Stealth | -11 -10 -9 --------- Run | Yrd Mat Mat Distress Signals 2 | . 2 . Communications Jammed . | . . . Distress Signals . | . . . Times Spotted 27 | . 17 10 Peak Tracking Total 5 | . 5 3 Tactical Retreats 2 | . 1 1 Traps | -11 -10 -9 ------- Run | Yrd Mat Mat Traps Triggered . | . . . Indirectly . | . . . Trap Hack Attempts . | . . . Triggered . | . . . Disarmed . | . . . Reprogrammed . | . . . Reused . | . . . Traps Extracted . | . . . Installed . | . . . Triggered . | . . . Machines | -11 -10 -9 ---------- Run | Yrd Mat Mat Machines Disabled . | . . . Max in Single Turn . | . . . Machines Repaired . | . . . Machines Dismantled . | . . . Machines Sabotaged . | . . . Overloaded Fab Kills . | . . . Hacking | -11 -10 -9 --------- Run | Yrd Mat Mat Machines Accessed 4 | . 2 2 Terminals 3 | . 2 1 Fabricators . | . . . Repair Stations . | . . . Recycling Units . | . . . Scanalyzers 1 | . . 1 Garrison Access . | . . . Total Hacks 7 | . 3 4 Successful 5 | . 2 3 Failed 2 | . 1 1 Catastrophic 1 | . 1 . Database Lockouts . | . . . Manual 4 | . 2 2 Terminals 5 | . 3 2 Fabricators . | . . . Repair Stations . | . . . Recycling Units . | . . . Scanalyzers 2 | . . 2 Garrison Access . | . . . Terminal Hacks 1 | . 1 . Hauler Manifests 1 | . 1 . Fabricator Hacks . | . . . Repair Station Hacks . | . . . Recycling Unit Hacks . | . . . Scanalyzer 2 | . . 2 Insert Component 1 | . . 1 Analyze 1 | . . 1 Garrison Access Hacks . | . . . Unauthorized Hacks 2 | . 1 1 Terminals 2 | . 1 1 Assimilate 1 | . 1 . Botnet 1 | . . 1 Fabricators . | . . . Repair Stations . | . . . Recycling Units . | . . . Scanalyzers . | . . . Garrison Access . | . . . Data Cores Recovered . | . . . Used . | . . . Hacking Detections 1 | . 1 . Full Trace Events 1 | . 1 . Feedback Events . | . . . Feedback Blocked . | . . . Robot Schematics Acquired . | . . . Robots Built . | . . . Authchips . | . . . Time . | . . . Total Robot Build Rating . | . . . Part Schematics Acquired 1 | . . 1 Parts Built . | . . . Authchips . | . . . Time . | . . . Total Part Build Rating . | . . . Parts Repaired . | . . . Time . | . . . Parts Recycled . | . . . Recycled Matter . | . . . Retrieved Matter . | . . . Retrieved Components . | . . . Parts Scanalyzed 1 | . . 1 Part Schematics Acquired 1 | . . 1 Parts Damaged . | . . . Bothacking | -11 -10 -9 ------------ Run | Yrd Mat Mat Used RIF Installer . | . . . Robots Hacked . | . . . Non-combat . | . . . Combat . | . . . Robot Hacks Applied . | . . . Relay Couplers Released . | . . . Fabnet Peak Effective % . | . . . Robots Rewired . | . . . Allies Hacked . | . . . Hacks Repelled . | . . . Allies | -11 -10 -9 -------- Run | Yrd Mat Mat Total Allies . | . . . Largest Group . | . . . Highest-Rated Group . | . . . Highest-Rated Ally . | . . . Total Orders . | . . . Ally Attacks . | . . . Total Damage . | . . . Kills . | . . . Allies Corrupted . | . . . Allies Melted . | . . . Intel | -11 -10 -9 ------- Run | Yrd Mat Mat Robot Analysis Total . | . . . Derelict Logs Recovered . | . . . Drone Launches . | . . . Drone Recoveries . | . . . Exploration | -11 -10 -9 ------------- Run | Yrd Mat Mat Turns Passed 870 | 54 474 342 Spaces Moved 427 | 47 283 97 Core 10 | 3 . 7 Treads 159 | . 69 90 Legs . | . . . Wheels 258 | 44 214 . Hover . | . . . Flight . | . . . Fastest Speed 50 | 50 90 160 Average Speed 119 | 86 107 173 Slowest Speed 350 | 90 160 350 Overloaded Moves . | . . . Propulsion Burnouts . | . . . Robots Hopped . | . . . Cave-ins Triggered . | . . . Exploration Rate (%) 21 | 3 50 12 Regions Visited 2 Branch Regions . Pre-discovered Areas . | . . . Known Exits Taken . | . . . Unknown Exits Taken 2 | 1 1 . Scrap Searched . | . . . Spaces Dug . | . . . Terrain Destroyed 5 | . . 5 Melee . | . . . Projectile 3 | . . 3 AOE 2 | . . 2 Terrain Rammed . | . . . Walls Destroyed . | . . . Machines Disabled . | . . . Actions | -11 -10 -9 --------- Run | Yrd Mat Mat Total 631 | 57 373 201 Wait 41 | . 16 25 Move 425 | 46 282 97 Hop . | . . . Pick Up 13 | 5 8 . Fast Attach 9 | 5 2 2 Attach 10 | 1 4 5 Detach 1 | . . 1 Swap 2 | . 1 1 Drop 3 | . 3 . Fire 123 | . 56 67 Melee . | . . . Ram 2 | . 1 1 Kick . | . . . Crush 2 | . . 2 Escape Stasis . | . . . Rewire . | . . . Trap . | . . . Miscellaneous . | . . . Route ------- -11/Scrapyard -10/Materials (discovered 2 exits: *Mat / [*Min]) -9/Materials (discovered 1 exit: [*Sto]) History --------- Turn | Location | Event 32 | -11/Scrapyard | Discovered new exit (range 15) 55 | -11/Scrapyard | Entered Materials 161 | -10/Materials | Discovered new exit (range 7) 333 | -10/Materials | Build established: Mutant 518 | -10/Materials | Discovered new exit (range 7) 529 | -10/Materials | Entered another Materials area 529 | -9/Materials | Evolved 2 slots: Utility x2 834 | -9/Materials | Lost 4 parts (2n2u) 847 | -9/Materials | Discovered new exit (range 16) 871 | -9/Materials | Self-destructed Last Messages --------------- 00804_ U-05 Engineer lays Concrete. 00805_ R-06 Scavenger collects Corrupted Aluminum Leg. 00806_ Acquired 1 matter. 00807_ K-01 Serf collects debris. 00809_ R-06 Scavenger collects Sml. Laser. 00810_ K-01 Serf collects debris. 00818_ R-06 Scavenger collects Weight Redist. System. 00819_ K-01 Serf collects debris. 00821_ R-06 Scavenger collects Faulty Imp. EM Shotgun. 00825_ K-01 Serf collects debris. 00826_ R-06 Scavenger collects Faulty Imp. EM Shotgun. 00828_ K-01 Serf collects debris. 00833_ Slammed into K-01 Serf. 00845_ K-01 Serf cleans the Atomic Centrifuge. 00847_ EXIT=FOUND 00847_ Lgt. Ion Engine destroyed. Map ----- +----------------------------------------------------+ | ?????????????????????#"######### # """ #????? | | ???????????????# ##### # # #????? | | ???????????????# %+ %=%+ ##########????? | | ???????????????# ###"= ! # #?????????????? | | ???????????????????### # #?????????????? | | ?????????????????????########### #?????????????? | | ?????????????????????????#?????# #?????????????? | | ????????????????????????? ??# ########### | | ?????????????????????????? """ # | | ?????????????????????????? """ + | | ???????????????????????????????# % % | | ???????????????????????????????#% %##############? | | ???????????????????????????????# # ?????? | | ???????????????????????????????# %# """ #????? | | ???????????????????????????????# # """ #????? | | ???????????????????????????????# # """ #????? | | ???????????????????????????????# + #????? | | ???????????????????????????????# # """ #????? | | ???????????????????????????????# # """ #????? | | ?????????????????????########### # """ #????? | | ?????????????????????# # # ?????? | | ?????????????????????# # ########??????? | | ?????????????????????# # #?????????????? | | ?????????????????????# Y #?????????????? | | ?????????????????????# ! # #?????????????? | | ?????????????????????# @ # #?????????????? | | ?????????????????????# # #?????????????? | | ?????????????????????# # #?????????????? | | ?????????????????????#+######### #?????????????? | | ?????????????????????# #???????# #?????????????? | | ?????????????????????# #???????# +?????????????? | | ?????????????????????# #???????? #?????????????? | | ?????????????????????# #???????? #?????????????? | | ?????????????????????+ #???????? #?????????????? | | ?????????????????????# #???????? ?????????????? | | ?????????????????????# #???????? ?????????????? | | ?????????????????????# #???????? < ?????????????? | | ?????????????????????? ????????? ??????????????? | | ?????????????????????? ??????????????????????????? | | ?????????????????????? ??????????????????????????? | | ?????????????????????? ??????????????????????????? | | ?????????????????????? ??????????????????????????? | | ??????????????????????#??????????????????????????? | | ?????????????????????????????????????????????????? | | ?????????????????????????????????????????????????? | | ?????????????????????????????????????????????????? | | ?????????????????????????????????????????????????? | | ?????????????????????????????????????????????????? | | ?????????????????????????????????????????????????? | | ?????????????????????????????????????????????????? | +----------------------------------------------------+ Best States ------------- Heat Dissipation 72 Energy Generation 14 Energy Capacity 160 Matter Stores 300 Matter Capacity 300 Sight Range 16 Terrain Scan Density 10 Evasion (%) 42 Recoil Reduction 2 Item Schematics ----------------- Mni. Grenade Launcher | -9/Materials | Scanalyzed Robot Schematics ------------------ None Fabricated ------------ Nothing Alien Tech Used ----------------- None Achievements -------------- None Challenges ------------ None Game ------ Seed HoverDeepSword Manual? 0 Play Time 00:11:47 Cumulative 27.1 hours Start 2024.04.13 @ 10:46:39 End 2024.04.13 @ 10:55:24 Sessions 1 Manual Loads 0 Difficulty Rogue Special Mode None Game No. 47 Rogue 47 Adventurer 0 Explorer 0 Win Type - Total 0 Types 0/0/0/0/0/0/0/0/0 Lore% 28 Gallery% 36 Achievement% 25 Wizard Run 0 Options --------- Layout 1 ASCII 0 Keyboard 1 Movement Arrows Keybinds 0 Fullscreen 1 Font 24/Smallcaps Map View 50x35 Zoom Use 0% Tactical HUD 1 Map Filters NONE Filters NONE Steam 1 RUN: 3799ffa5-9f27-428b-9dfa-9a6c0b2d8d60